Cogmind - Beta 17.1 @@@ ROGUE MODE // 2026.08.29 @ 00:58:17 Player: Finn Result: Destroyed by Y-45 Defender with Beam Rifle Performance ------------- Evolutions (2) 1000 Regions Visited (4) 800 Robots Destroyed (25) 125 Value Destroyed (689) 689 Prototype IDs (3) 60 Alien Tech Used (0) 0 Bonus (78) 78 TOTAL SCORE: 2752 Bonus ------- Follower Combat Kills 207 Friendly Fire -129 Cogmind --------- Core Integrity 0/550 Matter 290/300 Energy 74/100 System Corruption 0% Temperature Cool (27) Movement Core (50) Location -8/Storage Parts ------- > --- POWER (1) -------- (None) > --- PROPULSION (4) --- (None) > --- UTILITY (4) ------ (None) > --- WEAPON (2) ------- Beam Rifle > --- INVENTORY (5) ---- Scrap Shield Fragment (50) Scrap Shield Fragment (49) Scrap Shield Fragment (47) Scrap Shield Fragment (47) Peak State ------------ > --- POWER ------------ Light Deuterium Engine > --- PROPULSION ------- Flight Unit Flight Unit Flight Unit > --- UTILITY ---------- Shield Generator V3-11A's Pendant > --- WEAPON ----------- Advanced Beam Cannon > --- INVENTORY -------- Subdweller Power Source Scrap Shield Fragment Scrap Shield Fragment Scrap Shield Fragment Scrap Shield Fragment [Rating: 15] Favorites ----------- Power Subdweller Power Source Engine Subdweller Power Source Power Core Light Nuclear Core Propulsion Flight Unit Leg Carbon-fiber Leg Wheel Subdweller Monowheel Flight Unit Flight Unit Utility V3-11A's Pendant Device V3-11A's Pendant Weapon Light Assault Rifle Energy Gun Subdweller Laser Energy Cannon Advanced Beam Cannon Ballistic Gun Light Assault Rifle Launcher Grenade Launcher Build | -11 -10 -10 -8 -8 ------- Run | Yrd Mat Sub Mat Sto Slots Evolved 4 | . . . 4 . Power . | . . . . . Propulsion 2 | . . . 2 . Utility 2 | . . . 2 . Weapon . | . . . . . Parts Attached 30 | 6 2 9 12 1 Power 5 | 1 . 2 2 . Engine 4 | 1 . 2 1 . Core 1 | . . . 1 . Reactor . | . . . . . Propulsion 8 | 2 . 3 3 . Treads . | . . . . . Leg 2 | . . . 2 . Wheel 3 | 2 . 1 . . Hover . | . . . . . Flight 3 | . . 2 1 . Utility 3 | . 1 1 1 . Device 3 | . 1 1 1 . Storage . | . . . . . Processor . | . . . . . Hackware . | . . . . . Protection . | . . . . . Artifact . | . . . . . Weapon 14 | 3 1 3 6 1 Energy Gun 6 | . . 1 4 1 Energy Cannon 3 | . . 1 2 . Ballistic Gun 4 | 3 . 1 . . Ballistic Cannon . | . . . . . Launcher 1 | . 1 . . . Special Weapon . | . . . . . Impact Weapon . | . . . . . Slashing Weapon . | . . . . . Piercing Weapon . | . . . . . Special Melee Weapon . | . . . . . Unidentified Prototypes 3 | . . 1 2 . Parts Lost 19 | . 1 4 10 4 Power 3 | . . 1 1 1 Propulsion 7 | . 1 1 4 1 Utility 3 | . . 1 2 . Weapon 6 | . . 1 3 2 Highest Loss Streak 8 | . 1 1 8 2 To Critical Strikes . | . . . . . Average Backups 2 | 1 3 3 . . Power . | . . . . . Propulsion 1 | . 1 1 . . Utility . | . . . . . Weapon 1 | . 1 1 . . Tool/Special . | . . . . . Unused Backups . | . . . . . Power . | . . . . . Propulsion . | . . . . . Utility . | . . . . . Weapon . | . . . . . Tool/Special . | . . . . . Average Slot Usage (%) 73 | . 72 79 40 29 Engine 12 | . 14 13 4 . Wheel 11 | . 17 12 . . Flight 7 | . . 9 12 . Device 14 | . 11 16 8 . Energy Gun 3 | . . 3 6 14 Ballistic Gun 16 | . 14 19 . . Launcher 5 | . 13 3 . . Peak Build Rating 15 | 5 6 11 15 12 Average Rating 8 | 3 5 9 9 9 On Entrance 6 | . 5 5 11 12 Avg Prop Armor Cover (%) 9 | . . 6 27 . Naked Turns 5 | . . . 4 1 Heaviest Build 16 | 8 10 16 12 11 Greatest Support 36 | 32 32 36 15 15 Greatest Overweight (x) 3 | . . 2 3 . Average Overweight (x) . | . . . . . Largest Inventory Capacity 5 | 5 5 5 5 5 Average Capacity 5 | 5 5 5 5 5 Most Carried 5 | 4 5 5 5 5 Average Carried 3 | 1 3 3 4 4 Final Capacity 5 | 5 5 5 5 5 Final Carried 5 | 1 4 5 4 4 Class Distribution -------------------- 100% | Mutant Dominant Class ---------------- Mutant | -10/Materials Mutant | -10/Subcaves Mutant | -8/Materials Mutant | -8/Storage Resources | -11 -10 -10 -8 -8 ----------- Run | Yrd Mat Sub Mat Sto Matter Collected 1085 | 228 46 676 135 . Remotely . | . . . . . Salvage Created 884 | . 67 188 541 88 Parts 51 | . 9 11 25 6 Haulers Intercepted . | . . . . . Recyclers Shooed 3 | . 1 . 2 . Parts Field Recycled . | . . . . . Retrieved Matter . | . . . . . Parts Self-Destructed 21 | . . 21 . . Prevented . | . . . . . Parts Restored . | . . . . . Kills | -11 -10 -10 -8 -8 ------- Run | Yrd Mat Sub Mat Sto Combat Hostiles Destroyed 20 | . 7 3 8 2 Guns 10 | . 2 3 3 2 Cannons 4 | . . . 4 . AOE 5 | . 5 . . . Classes Destroyed 9 | . 2 3 4 . Worker 1 | . . . 1 . Recycler 1 | . . . 1 . Turret 1 | . . 1 . . Watcher 1 | . . . 1 . Swarmer 8 | . 6 2 . . Grunt 6 | . 1 . 5 . Sentry 5 | . . . 3 2 Artisan 1 | . . 1 . . Subdweller 2 | . . 2 . . Best Kill Streak 5 | . 5 2 4 2 Combat Bots Only 5 | . 5 1 4 2 Max Kills in Single Turn 5 | . 5 2 1 1 Gunslinging . | . . . . . Exploded 5 | . 5 . . . Melee . | . . . . . Uniques/NPCs Destroyed . | . . . . . Combat | -11 -10 -10 -8 -8 -------- Run | Yrd Mat Sub Mat Sto Hostile Shots Fired 200 | . 16 50 80 54 Missed 63 | . 5 14 20 24 Hits 137 | . 11 36 60 30 Projectile 137 | . 11 36 60 30 AOE 1 | . . . . 1 Critical Strikes 7 | . . 1 5 1 Damage Taken 2028 | . 105 493 926 504 Core 704 | . 12 137 316 239 Absorbed by Shields 63 | . . . 63 . Core Remaining (%) 70 | 100 . 40 . . Volleys Fired 240 | . 31 146 50 13 Largest 2 | . 2 2 2 2 Hottest 112 | . 50 85 112 112 Shots Fired 358 | . 32 252 59 15 Gun 323 | . 31 249 28 15 Cannon 31 | . . . 31 . Launcher 4 | . 1 3 . . Special . | . . . . . Kinetic 266 | . 31 235 . . Thermal 81 | . . 14 52 15 Explosive 4 | . 1 3 . . Electromagnetic 7 | . . . 7 . Robot Hit Streak 13 | . 3 5 13 7 Robot Miss Streak 7 | . 7 5 4 3 Penetration Max . | . . . . . Secondary Targets . | . . . . . Shots Hit Robots 88 | . 15 21 43 9 Core Hits 47 | . 11 13 18 5 Critical Kills 2 | . . 1 1 . Critical Parts Destroyed . | . . . . . Critical Strikes 5 | . . 2 3 . Burn 2 | . . . 2 . Meltdown 1 | . . . 1 . Destroy 2 | . . 2 . . Melee Attacks . | . . . . . Impact . | . . . . . Slashing . | . . . . . Piercing . | . . . . . Sneak Attacks . | . . . . . Combat Hostiles . | . . . . . Follow-up Attacks . | . . . . . Damage Inflicted 1549 | . 344 228 830 147 Guns 831 | . 109 222 353 147 Cannons 453 | . . . 453 . Explosions 241 | . 235 6 . . Melee . | . . . . . Ramming 24 | . . . 24 . Kinetic 308 | . 109 199 . . Thermal 872 | . . 23 702 147 Explosive 241 | . 235 6 . . Electromagnetic 104 | . . . 104 . Impact . | . . . . . Slashing . | . . . . . Piercing . | . . . . . Highest Corruption . | . . . . . Average Corruption . | . . . . . Corruption Purged . | . . . . . Corruption Blocked . | . . . . . Overload Shots . | . . . . . Overflow Damage 5 | . . 4 1 . Projectiles . | . . . . . Explosions 4 | . . 4 . . Melee 1 | . . . 1 . Knockbacks 1 | . . . 1 . Impact 1 | . . . 1 . Kinetic . | . . . . . Secondary . | . . . . . Self-Inflicted Damage 32 | . . 21 11 . Shots 1 | . . 1 . . Rammed 4 | . . . 4 . Targets Rammed 4 | . . . 4 . Kicked . | . . . . . Crushed . | . . . . . Highest Temperature 539 | . 10 16 539 78 Average Temperature 134 | . 6 7 177 22 Received Heat Transfer 829 | . 42 165 451 171 Effects 9 | . . . 9 . Energy Bleed 2 | . . . 2 . Interference 1 | . . . 1 . Matter Decay 1 | . . . 1 . Short Circuit 2 | . . . 2 . Damage (minor) 2 | . . . 2 . Damage (core) 1 | . . . 1 . Siege Activations . | . . . . . Martial Activations . | . . . . . Shielding Activations . | . . . . . Robots Disrupted . | . . . . . Combat Hostiles . | . . . . . Robots Corrupted 1 | . . . 1 . Combat Hostiles . | . . . . . Parts Fried 2 | . . . 2 . Impact Corruptions 1 | . . . 1 . Robots Melted 1 | . . . 1 . Combat Hostiles 1 | . . . 1 . Parts Melted 7 | . . . 7 . Heat Transferred 1875 | . . 25 1517 333 Parts Sabotaged . | . . . . . Parts Stolen . | . . . . . Parts Stripped . | . . . . . Power Chain Reactions . | . . . . . Alert | -11 -10 -10 -8 -8 ------- Run | Yrd Mat Sub Mat Sto Maximum Alert Level . | . . . . . Low Security (%) 100 | 100 100 . 100 100 Level 1 . | . . . . . Level 2 . | . . . . . Level 3 . | . . . . . Level 4 . | . . . . . Level 5 . | . . . . . High Security . | . . . . . Max Security . | . . . . . Peak Influence 133 | . 133 . 81 60 Initial 14 | . . . 14 13 Average 24 | . 24 . 34 5 Influence Increases 841 | . 193 268 320 60 Destroy 0b10 Robot/C 560 | . 140 180 200 40 Destroy 0b10 Robot/NC 15 | . . . 15 . Destroy Leader 112 | . 30 10 52 20 Allied During Kill 38 | . . 33 5 . Disable Machine 15 | . . . 15 . Destroy Structure 11 | . 8 . 3 . Lose Combat Pursuer 90 | . 15 45 30 . Influence Decreases 801 | . 193 240 315 53 Entered New Map 34 | . . . 14 20 Time Decay 578 | . 183 201 181 13 Lost Part 130 | . 10 . 100 20 Lost Ally 59 | . . 39 20 . Squads Dispatched 3 | . 1 . 1 1 Investigation 2 | . 1 . . 1 Extermination . | . . . . . Reinforcement 1 | . . . 1 . Assault . | . . . . . Garrison . | . . . . . Intercept . | . . . . . Searches Triggered . | . . . . . Construction Impeded . | . . . . . Haulers Reinforced . | . . . . . Active Scanning Responses . | . . . . . Cargo Convoy Interrupts . | . . . . . Stealth | -11 -10 -10 -8 -8 --------- Run | Yrd Mat Sub Mat Sto Distress Signals 4 | . . . 4 . Communications Jammed . | . . . . . Distress Signals . | . . . . . Times Spotted 55 | . 9 18 21 7 Peak Tracking Total 6 | . 6 3 6 5 Tactical Retreats 3 | . 1 1 1 . Traps | -11 -10 -10 -8 -8 ------- Run | Yrd Mat Sub Mat Sto Traps Triggered 2 | . . 1 . 1 Indirectly . | . . . . . Trap Hack Attempts . | . . . . . Triggered . | . . . . . Disarmed . | . . . . . Reprogrammed . | . . . . . Reused . | . . . . . Traps Extracted . | . . . . . Installed . | . . . . . Triggered . | . . . . . Machines | -11 -10 -10 -8 -8 ---------- Run | Yrd Mat Sub Mat Sto Machines Disabled 1 | . . . 1 . Max in Single Turn 1 | . . . 1 . Garrison Access 1 | . . . 1 . Machines Repaired . | . . . . . Machines Dismantled . | . . . . . Machines Sabotaged . | . . . . . Overloaded Fab Kills . | . . . . . Hacking | -11 -10 -10 -8 -8 --------- Run | Yrd Mat Sub Mat Sto Machines Accessed 4 | . 3 . 1 . Terminals 2 | . 2 . . . Fabricators . | . . . . . Repair Stations . | . . . . . Recycling Units 1 | . 1 . . . Scanalyzers . | . . . . . Garrison Access 1 | . . . 1 . Total Hacks 9 | . 7 . 2 . Successful 6 | . 5 . 1 . Failed 3 | . 2 . 1 . Catastrophic 1 | . 1 . . . Database Lockouts . | . . . . . Manual 1 | . 1 . . . Terminals 4 | . 4 . . . Fabricators . | . . . . . Repair Stations . | . . . . . Recycling Units 3 | . 3 . . . Scanalyzers . | . . . . . Garrison Access 2 | . . . 2 . Terminal Hacks 4 | . 4 . . . Record 2 | . 2 . . . Robot Analysis 1 | . 1 . . . Zone Layout 1 | . 1 . . . Fabricator Hacks . | . . . . . Repair Station Hacks . | . . . . . Recycling Unit Hacks 1 | . 1 . . . Process 1 | . 1 . . . Scanalyzer . | . . . . . Garrison Access Hacks 1 | . . . 1 . Seal Access 1 | . . . 1 . Unauthorized Hacks . | . . . . . Terminals . | . . . . . Fabricators . | . . . . . Repair Stations . | . . . . . Recycling Units . | . . . . . Scanalyzers . | . . . . . Garrison Access . | . . . . . Data Cores Recovered . | . . . . . Used . | . . . . . Hacking Detections 3 | . 2 . 1 . Full Trace Events 1 | . 1 . . . Feedback Events . | . . . . . Feedback Blocked . | . . . . . Robot Schematics Acquired . | . . . . . Robots Built . | . . . . . Authchips . | . . . . . Time . | . . . . . Total Robot Build Rating . | . . . . . Part Schematics Acquired . | . . . . . Parts Built . | . . . . . Authchips . | . . . . . Time . | . . . . . Total Part Build Rating . | . . . . . Part Studies Acquired . | . . . . . Parts Repaired . | . . . . . Time . | . . . . . Parts Recycled . | . . . . . Recycled Matter 78 | . 78 . . . Retrieved Matter . | . . . . . Retrieved Components . | . . . . . Parts Scanalyzed . | . . . . . Part Schematics Acquired . | . . . . . Parts Damaged . | . . . . . Bothacking | -11 -10 -10 -8 -8 ------------ Run | Yrd Mat Sub Mat Sto Used RIF Installer . | . . . . . Robots Hacked . | . . . . . Non-combat . | . . . . . Combat . | . . . . . Robot Hacks Applied . | . . . . . Relay Couplers Released . | . . . . . Fabnet Peak Effective % . | . . . . . Robots Rewired . | . . . . . Allies Hacked . | . . . . . Hacks Repelled . | . . . . . Allies | -11 -10 -10 -8 -8 -------- Run | Yrd Mat Sub Mat Sto Total Allies 11 | . . 11 . . Largest Group 5 | . . 5 1 . Highest-Rated Group 95 | . . 95 19 . Highest-Rated Ally 19 | . . 19 19 . Total Orders . | . . . . . Ally Attacks 45 | . . 36 9 . Total Damage 689 | . . 489 200 . Kills 10 | . . 8 2 . Allies Corrupted . | . . . . . Allies Melted 1 | . . 1 . . Intel | -11 -10 -10 -8 -8 ------- Run | Yrd Mat Sub Mat Sto Active Infowar (turns) 2406 | . 921 1485 . . Structural 2406 | . 921 1485 . . Robot Analysis Total 1 | . 1 . . . Derelict Logs Recovered 1 | . . 1 . . Drone Launches . | . . . . . Drone Recoveries . | . . . . . Exploration | -11 -10 -10 -8 -8 ------------- Run | Yrd Mat Sub Mat Sto Turns Passed 5684 | 46 1088 3923 430 197 Spaces Moved 3351 | 42 204 2618 362 125 Core 318 | 15 . 226 77 . Treads . | . . . . . Legs 156 | . . . 31 125 Wheels 1429 | 27 204 1198 . . Hover . | . . . . . Flight 1448 | . . 1194 254 . Fastest Speed 34 | 50 100 37 34 120 Average Speed 99 | 82 100 104 54 120 Slowest Speed 200 | 100 100 150 200 120 Overloaded Moves . | . . . . . Propulsion Burnouts . | . . . . . Robots Hopped 3 | . . . 3 . Potential Cave-ins . | . . . . . Cave-ins Triggered . | . . . . . Exploration Rate (%) 40 | 3 38 91 31 37 Regions Visited 4 Branch Regions 2 Pre-discovered Areas 1 | . . 1 . . Known Exits Taken . | . . . . . Unknown Exits Taken 4 | 1 1 1 1 . Scrap Searched 2 | . . 2 . . Spaces Dug . | . . . . . Terrain Destroyed 24 | . 7 17 . . Melee . | . . . . . Projectile . | . . . . . AOE 24 | . 7 17 . . Terrain Rammed . | . . . . . Walls Destroyed . | . . . . . Machines Disabled . | . . . . . Actions | -11 -10 -10 -8 -8 --------- Run | Yrd Mat Sub Mat Sto Total 5387 | 53 1061 3582 533 158 Wait 1716 | . 821 781 96 18 Move 3342 | 41 203 2617 356 125 Hop 2 | . . . 2 . Pick Up 32 | 6 4 12 9 1 Fast Attach 2 | . . . 2 . Attach 24 | 5 1 8 9 1 Detach . | . . . . . Swap 11 | 1 1 8 1 . Drop 11 | . . 7 4 . Fire 240 | . 31 146 50 13 Melee . | . . . . . Ram 4 | . . . 4 . Kick . | . . . . . Crush . | . . . . . Escape Stasis . | . . . . . Rewire 3 | . . 3 . . Trap . | . . . . . Miscellaneous . | . . . . . Route ------- -11/Scrapyard -10/Materials (discovered 3 exits: [*Mat] / [*Min] / [*Sub]) -10/Subcaves (discovered 3 exits: *Mat x2 / [*Rec]) -8/Materials -8/Storage History --------- Turn | Location | Event 29 | -11/Scrapyard | Discovered new exit (range 15) 47 | -11/Scrapyard | Entered Materials 227 | -10/Materials | Discovered new exit (range 7) 258 | -10/Materials | Discovered new exit (range 8) 311 | -10/Materials | Build established: Mutant 352 | -10/Materials | Discovered new exit (range 4) 1135 | -10/Materials | Entered Subcaves 1299 | -10/Subcaves | Learned location of Zion (-6) 1299 | -10/Subcaves | Met a Zionite searching for "candidates" 1396 | -10/Subcaves | Visited triangular shrine 2008 | -10/Subcaves | Found Prototype Device 2009 | -10/Subcaves | Identified V3-11A's Pendant 2014 | -10/Subcaves | Befriended Subdweller 2094 | -10/Subcaves | Befriended Subdweller 2094 | -10/Subcaves | Befriended Subdweller 2220 | -10/Subcaves | Learned Materials emergency access door positions 2255 | -10/Subcaves | Discovered new exit (range 6) 2604 | -10/Subcaves | Befriended Subdweller 2624 | -10/Subcaves | Befriended Subdweller 2634 | -10/Subcaves | Befriended Subdweller 2657 | -10/Subcaves | Lost 3 allies 2702 | -10/Subcaves | Ambushed by Subdweller buried in earth 2704 | -10/Subcaves | Befriended Subdweller 2864 | -10/Subcaves | Core integrity fell below 50% 2942 | -10/Subcaves | Discovered new exit (range 13) 3154 | -10/Subcaves | Befriended Subdweller 3448 | -10/Subcaves | Ambushed by Subdwellers from Twisted Machinery 3449 | -10/Subcaves | Befriended Subdweller 3449 | -10/Subcaves | Befriended Subdweller 3646 | -10/Subcaves | Discovered new exit (range 11) 4134 | -10/Subcaves | Befriended Subdweller 4171 | -10/Subcaves | Shifting Twisted Machinery released Sub. Power Source 5058 | -10/Subcaves | Entered Materials 5058 | -8/Materials | Accompanied by 1 ally 5058 | -8/Materials | Evolved 4 slots: Propulsion x2, Utility x2 5316 | -8/Materials | Lost 8 parts (1p3n2u2w) 5352 | -8/Materials | Core integrity fell below 50% 5465 | -8/Materials | Discovered new exit (range 15) 5488 | -8/Materials | Entered Storage 5676 | -8/Storage | Core integrity fell below 20% 5685 | -8/Storage | Destroyed by Y-45 Defender with Beam Rifle Last Messages --------------- 05532_ Connecting with Recycling Unit... 05532_ Current location identified: Storage 05607_ Lgt. Nuclear Core destroyed. 05611_ Triggered Alarm Trap. 05611_ An alarm sounds. 05611_ ALERT: Alarm triggered, dispatching investigation squad. 05615_ Imp. Medium Laser destroyed. 05668_ Compression Vault explodes. 05668_ Repair Station disabled. 05668_ Backup Power I tumbles out of repair station. 05669_ Y-45 Defender destroyed. 05678_ Critical hit (Burn: +37). 05679_ Imp. Medium Laser destroyed. 05680_ Carbon-fiber Leg destroyed. 05680_ Acquired Beam Rifle. 05684_ U-05 Engineer lays Concrete. 05685_ The unstable cave ceiling collapses. 05685_ U-05 Engineer lays Concrete. Map ----- +----------------------------------------------------+ | ?????????????????????????????????? | | ?????????????????????????????????? | | ?????????????????????????????????? | | ?????????????????????????????????? | | ?????????????????????????????????? | | ?????????????????????????????????? | | ?????????????????????????????????? | | ?????????????????????????????????? | | ?????????????????????????????????? | | ?????????????????????????????????? | | ?????????????????????????????????? | | ?????????????????????????????????? | | ??????????????#####??????????????? | | ??????????????#"""#??????????????? | | ?????????######"T"#####??????????? | | ?????????# + #??????????? | | ?????????# ### """ #??????????? | | ?????????# ## """ #?????###### | | ?????????# ### """ #????## | | ?????????# #?# #????# | | ????###### #?# """ #?????# | | ???### +### """ #?????? | | ?### Y =# """ #???????? | | ?#""" # #?????????? | | ?#"R =! #+###+############### | | ?#""" @%[ # | | ?#""" =%!Yuu | | ??## " # ^ | | ???# *"R" ###+#+############### | | ???## % Y""" #?? ????????????? | | ????# # """ """ ??????????? | | ????##T####### """ """ #?????????? | | ?????###?????# """ """ #?????????? | | ?????????????# #?????????? | | ?????????????# #?????????? | | ?????????????? ! ??????????? | | ???????????????? ????????????? | | ????????????????#####????????????? | | ?????????????????????????????????? | | ?????????????????????????????????? | | ?????????????????????????????????? | | ?????????????????????????????????? | | | | | | | | | | | | | | | | | +----------------------------------------------------+ Best States ------------- Heat Dissipation 31 Energy Generation 15 Energy Capacity 250 Matter Stores 300 Matter Capacity 300 Sight Range 16 Terrain Scan Density 10 Evasion (%) 63 Item Schematics ----------------- None Robot Schematics ------------------ None Fabricated ------------ Nothing Repaired ---------- Nothing Studied --------- None Alien Tech Used ----------------- None Achievements -------------- Art Critic Do Not Disturb Quick And Dirty SUBSUB Challenges ------------ None Game ------ Seed ProjectileMatterMultitool Manual? 0 Play Time 00:30:55 Cumulative 19.2 hours Start 2026.08.29 @ 00:28:39 End 2026.08.29 @ 00:58:17 Sessions 1 Manual Loads 0 Difficulty Rogue Special Mode None Game No. 40 Rogue 23 Adventurer 15 Explorer 2 Win Type - Total 0 Types 0/0/0/0/0/0/0/0/0/0 Lore% 20 Gallery% 19 Achievement% 16 Wizard Run 0 Options --------- Layout 1 ASCII 0 Keyboard 0 Movement Mouse Keybinds 0 Fullscreen 1 Font 24/Smallcaps Map View 50x35 Zoom Use 0% Tactical HUD 1 Map Filters NONE Filters NONE Steam 1 RUN: 20280bc7-5b11-4d29-94fa-1a804173a2e9